{"text_format":"3","workbook":"xlsx","n_sheets":2,"sheets":["Inventori Peralatan","Seting"],"not_rendered":{"defined_names":4},"read":"whole","date_system":"1900"}

{"sheet":"Inventori Peralatan","index":0,"n_rows":35,"n_cols":6,"rows_kept":35,"merged":[[0,1,2,2],[0,4,0,5]]}
[]
[{"$nulls":4},"Serlahkan item yang lebih lama daripada:"]
[{"$nulls":4},4]
[]
[null,"ID PERALATAN","NAMA ITEM","DITUGASKAN KEPADA","TARIKH KELUARAN","UMUR ITEM"]
[null,"ITEM0001","kerusi","Pekerja 1",{"$f":"TODAY()-25","v":"2012-12-10"},{"$f":"IF(tblEquipmentInventory[[#This Row],[TARIKH KELUARAN]]<>\"\",TODAY()-tblEquipmentInventory[[#This Row],[TARIKH KELUARAN]],\"\")","v":{"v":25,"d":"25 Hari"}}]
[null,"ITEM0002","pencetak laser","Pekerja 2",{"$f":"TODAY()-479","v":"2011-09-13"},{"$f":"IF(tblEquipmentInventory[[#This Row],[TARIKH KELUARAN]]<>\"\",TODAY()-tblEquipmentInventory[[#This Row],[TARIKH KELUARAN]],\"\")","v":{"v":479,"d":"479 Hari"}}]
[null,"ITEM0003","pengimbas","Pekerja 3",{"$f":"TODAY()-177","v":"2012-07-11"},{"$f":"IF(tblEquipmentInventory[[#This Row],[TARIKH KELUARAN]]<>\"\",TODAY()-tblEquipmentInventory[[#This Row],[TARIKH KELUARAN]],\"\")","v":{"v":177,"d":"177 Hari"}}]
[null,"ITEM0004","pencetak laser","Pekerja 7",{"$f":"TODAY()-18","v":"2012-12-17"},{"$f":"IF(tblEquipmentInventory[[#This Row],[TARIKH KELUARAN]]<>\"\",TODAY()-tblEquipmentInventory[[#This Row],[TARIKH KELUARAN]],\"\")","v":{"v":18,"d":"18 Hari"}}]
[null,"ITEM0005","pembancuh kopi","Pekerja 20",{"$f":"TODAY()-227","v":"2012-05-22"},{"$f":"IF(tblEquipmentInventory[[#This Row],[TARIKH KELUARAN]]<>\"\",TODAY()-tblEquipmentInventory[[#This Row],[TARIKH KELUARAN]],\"\")","v":{"v":227,"d":"227 Hari"}}]
[null,"ITEM0006","pengimbas","Pekerja 14",{"$f":"TODAY()-50","v":"2012-11-15"},{"$f":"IF(tblEquipmentInventory[[#This Row],[TARIKH KELUARAN]]<>\"\",TODAY()-tblEquipmentInventory[[#This Row],[TARIKH KELUARAN]],\"\")","v":{"v":50,"d":"50 Hari"}}]
[null,"ITEM0007","meja","Pekerja 4",{"$f":"TODAY()-120","v":"2012-09-06"},{"$f":"IF(tblEquipmentInventory[[#This Row],[TARIKH KELUARAN]]<>\"\",TODAY()-tblEquipmentInventory[[#This Row],[TARIKH KELUARAN]],\"\")","v":{"v":120,"d":"120 Hari"}}]
[null,"ITEM0008","mesin salin","Pekerja 12",{"$f":"TODAY()-499","v":"2011-08-24"},{"$f":"IF(tblEquipmentInventory[[#This Row],[TARIKH KELUARAN]]<>\"\",TODAY()-tblEquipmentInventory[[#This Row],[TARIKH KELUARAN]],\"\")","v":{"v":499,"d":"499 Hari"}}]
[null,"ITEM0009","monitor tambahan","Pekerja 8",{"$f":"TODAY()-30","v":"2012-12-05"},{"$f":"IF(tblEquipmentInventory[[#This Row],[TARIKH KELUARAN]]<>\"\",TODAY()-tblEquipmentInventory[[#This Row],[TARIKH KELUARAN]],\"\")","v":{"v":30,"d":"30 Hari"}}]
[null,"ITEM0010","papan putih","Pekerja 19",{"$f":"TODAY()-50","v":"2012-11-15"},{"$f":"IF(tblEquipmentInventory[[#This Row],[TARIKH KELUARAN]]<>\"\",TODAY()-tblEquipmentInventory[[#This Row],[TARIKH KELUARAN]],\"\")","v":{"v":50,"d":"50 Hari"}}]
[null,"ITEM0011","mesin salin","Pekerja 12",{"$f":"TODAY()-450","v":"2011-10-12"},{"$f":"IF(tblEquipmentInventory[[#This Row],[TARIKH KELUARAN]]<>\"\",TODAY()-tblEquipmentInventory[[#This Row],[TARIKH KELUARAN]],\"\")","v":{"v":450,"d":"450 Hari"}}]
[null,"ITEM0012","alat tulis","Pekerja 18",{"$f":"TODAY()-420","v":"2011-11-11"},{"$f":"IF(tblEquipmentInventory[[#This Row],[TARIKH KELUARAN]]<>\"\",TODAY()-tblEquipmentInventory[[#This Row],[TARIKH KELUARAN]],\"\")","v":{"v":420,"d":"420 Hari"}}]
[null,"ITEM0013","monitor tambahan","Pekerja 8",{"$f":"TODAY()-250","v":"2012-04-29"},{"$f":"IF(tblEquipmentInventory[[#This Row],[TARIKH KELUARAN]]<>\"\",TODAY()-tblEquipmentInventory[[#This Row],[TARIKH KELUARAN]],\"\")","v":{"v":250,"d":"250 Hari"}}]
[null,"ITEM0014","pembancuh kopi","Pekerja 9",{"$f":"TODAY()-45","v":"2012-11-20"},{"$f":"IF(tblEquipmentInventory[[#This Row],[TARIKH KELUARAN]]<>\"\",TODAY()-tblEquipmentInventory[[#This Row],[TARIKH KELUARAN]],\"\")","v":{"v":45,"d":"45 Hari"}}]
[null,"ITEM0015","alat tulis","Pekerja 13",{"$f":"TODAY()-502","v":"2011-08-21"},{"$f":"IF(tblEquipmentInventory[[#This Row],[TARIKH KELUARAN]]<>\"\",TODAY()-tblEquipmentInventory[[#This Row],[TARIKH KELUARAN]],\"\")","v":{"v":502,"d":"502 Hari"}}]
[null,"ITEM0016","pengimbas","Pekerja 1",{"$f":"TODAY()-350","v":"2012-01-20"},{"$f":"IF(tblEquipmentInventory[[#This Row],[TARIKH KELUARAN]]<>\"\",TODAY()-tblEquipmentInventory[[#This Row],[TARIKH KELUARAN]],\"\")","v":{"v":350,"d":"350 Hari"}}]
[null,"ITEM0017","mesin salin","Pekerja 19",{"$f":"TODAY()-125","v":"2012-09-01"},{"$f":"IF(tblEquipmentInventory[[#This Row],[TARIKH KELUARAN]]<>\"\",TODAY()-tblEquipmentInventory[[#This Row],[TARIKH KELUARAN]],\"\")","v":{"v":125,"d":"125 Hari"}}]
[null,"ITEM0018","papan putih","Pekerja 15",{"$f":"TODAY()-90","v":"2012-10-06"},{"$f":"IF(tblEquipmentInventory[[#This Row],[TARIKH KELUARAN]]<>\"\",TODAY()-tblEquipmentInventory[[#This Row],[TARIKH KELUARAN]],\"\")","v":{"v":90,"d":"90 Hari"}}]
[null,"ITEM0019","kerusi","Pekerja 16",{"$f":"TODAY()-730","v":"2011-01-05"},{"$f":"IF(tblEquipmentInventory[[#This Row],[TARIKH KELUARAN]]<>\"\",TODAY()-tblEquipmentInventory[[#This Row],[TARIKH KELUARAN]],\"\")","v":{"v":730,"d":"730 Hari"}}]
[null,"ITEM0020","kain lap (1 set)","Pekerja 3",{"$f":"TODAY()-540","v":"2011-07-14"},{"$f":"IF(tblEquipmentInventory[[#This Row],[TARIKH KELUARAN]]<>\"\",TODAY()-tblEquipmentInventory[[#This Row],[TARIKH KELUARAN]],\"\")","v":{"v":540,"d":"540 Hari"}}]
[null,"ITEM0021","pencetak laser","Pekerja 7",{"$f":"TODAY()-18","v":"2012-12-17"},{"$f":"IF(tblEquipmentInventory[[#This Row],[TARIKH KELUARAN]]<>\"\",TODAY()-tblEquipmentInventory[[#This Row],[TARIKH KELUARAN]],\"\")","v":{"v":18,"d":"18 Hari"}}]
[null,"ITEM0022","komputer riba","Pekerja 8",{"$f":"TODAY()-283","v":"2012-03-27"},{"$f":"IF(tblEquipmentInventory[[#This Row],[TARIKH KELUARAN]]<>\"\",TODAY()-tblEquipmentInventory[[#This Row],[TARIKH KELUARAN]],\"\")","v":{"v":283,"d":"283 Hari"}}]
[null,"ITEM0023","alat tulis","Pekerja 9",{"$f":"TODAY()-479","v":"2011-09-13"},{"$f":"IF(tblEquipmentInventory[[#This Row],[TARIKH KELUARAN]]<>\"\",TODAY()-tblEquipmentInventory[[#This Row],[TARIKH KELUARAN]],\"\")","v":{"v":479,"d":"479 Hari"}}]
[null,"ITEM0024","pencetak laser","Pekerja 19",{"$f":"TODAY()-355","v":"2012-01-15"},{"$f":"IF(tblEquipmentInventory[[#This Row],[TARIKH KELUARAN]]<>\"\",TODAY()-tblEquipmentInventory[[#This Row],[TARIKH KELUARAN]],\"\")","v":{"v":355,"d":"355 Hari"}}]
[null,"ITEM0025","meja","Pekerja 7",{"$f":"TODAY()-28","v":"2012-12-07"},{"$f":"IF(tblEquipmentInventory[[#This Row],[TARIKH KELUARAN]]<>\"\",TODAY()-tblEquipmentInventory[[#This Row],[TARIKH KELUARAN]],\"\")","v":{"v":28,"d":"28 Hari"}}]
[null,"ITEM0026","papan putih","Pekerja 8",{"$f":"TODAY()-28","v":"2012-12-07"},{"$f":"IF(tblEquipmentInventory[[#This Row],[TARIKH KELUARAN]]<>\"\",TODAY()-tblEquipmentInventory[[#This Row],[TARIKH KELUARAN]],\"\")","v":{"v":28,"d":"28 Hari"}}]
[null,"ITEM0027","komputer riba","Pekerja 19",{"$f":"TODAY()-736","v":"2010-12-30"},{"$f":"IF(tblEquipmentInventory[[#This Row],[TARIKH KELUARAN]]<>\"\",TODAY()-tblEquipmentInventory[[#This Row],[TARIKH KELUARAN]],\"\")","v":{"v":736,"d":"736 Hari"}}]
[null,"ITEM0028","meja","Pekerja 12",{"$f":"TODAY()-68","v":"2012-10-28"},{"$f":"IF(tblEquipmentInventory[[#This Row],[TARIKH KELUARAN]]<>\"\",TODAY()-tblEquipmentInventory[[#This Row],[TARIKH KELUARAN]],\"\")","v":{"v":68,"d":"68 Hari"}}]
[null,"ITEM0029","pengimbas","Pekerja 14",{"$f":"TODAY()-67","v":"2012-10-29"},{"$f":"IF(tblEquipmentInventory[[#This Row],[TARIKH KELUARAN]]<>\"\",TODAY()-tblEquipmentInventory[[#This Row],[TARIKH KELUARAN]],\"\")","v":{"v":67,"d":"67 Hari"}}]
[null,"ITEM0030","pembancuh kopi","Pekerja 3",{"$f":"TODAY()-149","v":"2012-08-08"},{"$f":"IF(tblEquipmentInventory[[#This Row],[TARIKH KELUARAN]]<>\"\",TODAY()-tblEquipmentInventory[[#This Row],[TARIKH KELUARAN]],\"\")","v":{"v":149,"d":"149 Hari"}}]

{"sheet":"Seting","index":1,"n_rows":23,"n_cols":4,"rows_kept":23}
[]
[]
[null,"PEKERJA",null,"ITEM"]
[null,"Pekerja 1",null,"kerusi"]
[null,"Pekerja 2",null,"pembancuh kopi"]
[null,"Pekerja 3",null,"mesin salin"]
[null,"Pekerja 4",null,"komputer desktop"]
[null,"Pekerja 5",null,"kain lap (1 set)"]
[null,"Pekerja 6",null,"monitor tambahan"]
[null,"Pekerja 7",null,"pencetak dakwat jet"]
[null,"Pekerja 8",null,"komputer riba"]
[null,"Pekerja 9",null,"pencetak laser"]
[null,"Pekerja 10",null,"pen penanda (3 paket)"]
[null,"Pekerja 11",null,"pengimbas"]
[null,"Pekerja 12",null,"alat tulis"]
[null,"Pekerja 13",null,"meja"]
[null,"Pekerja 14",null,"Pemacu USB"]
[null,"Pekerja 15",null,"papan putih"]
[null,"Pekerja 16"]
[null,"Pekerja 17"]
[null,"Pekerja 18"]
[null,"Pekerja 19"]
[null,"Pekerja 20"]